fUSD/lending_fUSD_20260526
["ID","MTS","AMOUNT","RATE_DAILY","PERIOD"]
[423013188,1779745902000,-35000.0,0.00037778,2]
[423013191,1779745902000,-250666.66,0.00037781,120]
[423013192,1779745902000,-300.0,0.00037782,2]
[423013196,1779745902000,-300.0,0.00037782,2]
[423013193,1779745902000,-300.0,0.00037782,2]
[423013180,1779745902000,-500.0,0.00037776,120]
[423013194,1779745902000,-300.0,0.00037782,2]
[423013206,1779745902000,-1000.0,0.000378,7]
[423013201,1779745902000,-10672.54,0.000378,5]
[423013203,1779745902000,-1000.0,0.000378,7]
[423013204,1779745902000,-1000.0,0.000378,7]
[423013195,1779745902000,-300.0,0.00037782,2]
[423013200,1779745902000,-76116.35,0.000378,5]
[423013202,1779745902000,-1000.0,0.000378,7]
[423013209,1779745902000,-1000.0,0.000378,7]
[423013210,1779745902000,-1000.0,0.000378,7]
[423013198,1779745902000,-311.26,0.00037782,2]
[423013199,1779745902000,-343774.15,0.000378,5]
[423013190,1779745902000,-235261.36,0.0003778,30]
[423013211,1779745902000,-1000.0,0.000378,7]
[423013276,1779745903000,-1000.0,0.000378,7]
[423013278,1779745903000,-1000.0,0.000378,7]
[423013279,1779745903000,-1000.0,0.000378,7]
[423013285,1779745903000,-1000.0,0.000378,7]
[423013260,1779745903000,-1035.0,0.000378,7]
[423013274,1779745903000,-1000.0,0.000378,7]
[423013270,1779745903000,-1000.0,0.000378,7]
[423013264,1779745903000,-1000.0,0.000378,7]
[423013265,1779745903000,-1000.0,0.000378,7]
[423013262,1779745903000,-1000.0,0.000378,7]
[423013277,1779745903000,-1000.0,0.000378,7]
[423013275,1779745903000,-1000.0,0.000378,7]
[423013286,1779745903000,-1000.0,0.000378,7]
[423013281,1779745903000,-1000.0,0.000378,7]
[423013284,1779745903000,-1000.0,0.000378,7]
[423013280,1779745903000,-1000.0,0.000378,7]
[423013283,1779745903000,-1000.0,0.000378,7]
[423013287,1779745903000,-1000.0,0.000378,7]
[423013289,1779745903000,-1000.0,0.000378,30]
[423013288,1779745903000,-1079.76,0.000378,120]
[423013291,1779745903000,-1000.0,0.000378,7]
[423013293,1779745903000,-168.0,0.000378,7]
[423013290,1779745903000,-1000.0,0.000378,7]
[423013292,1779745903000,-1000.0,0.000378,7]
[423013266,1779745903000,-1000.0,0.000378,7]
[423013282,1779745903000,-1000.0,0.000378,7]
[423013268,1779745903000,-1000.0,0.000378,7]
[423013252,1779745903000,-1000.0,0.000378,7]
[423013269,1779745903000,-1000.0,0.000378,7]
[423013294,1779745903000,-350.0,0.00037808,5]
[423013239,1779745903000,-1000.0,0.000378,7]
[423013240,1779745903000,-1000.0,0.000378,7]
[423013241,1779745903000,-1000.0,0.000378,7]
[423013245,1779745903000,-1000.0,0.000378,7]
[423013246,1779745903000,-1000.0,0.000378,7]
[423013247,1779745903000,-1000.0,0.000378,7]
[423013242,1779745903000,-1000.0,0.000378,7]
[423013244,1779745903000,-1000.0,0.000378,7]
[423013243,1779745903000,-1000.0,0.000378,7]
[423013248,1779745903000,-1000.0,0.000378,7]
[423013250,1779745903000,-1000.0,0.000378,7]
[423013263,1779745903000,-1000.0,0.000378,7]
[423013251,1779745903000,-1000.0,0.000378,7]
[423013249,1779745903000,-1000.0,0.000378,7]
[423013253,1779745903000,-1000.0,0.000378,7]
[423013258,1779745903000,-1000.0,0.000378,7]
[423013254,1779745903000,-1000.0,0.000378,7]
[423013256,1779745903000,-1000.0,0.000378,7]
[423013255,1779745903000,-1000.0,0.000378,7]
[423013257,1779745903000,-1000.0,0.000378,7]
[423013271,1779745903000,-1000.0,0.000378,7]
[423013261,1779745903000,-1000.0,0.000378,7]
[423013272,1779745903000,-1000.0,0.000378,7]
[423013273,1779745903000,-1000.0,0.000378,7]
[423013267,1779745903000,-1000.0,0.000378,7]
[423013259,1779745903000,-1000.0,0.000378,7]
[423013296,1779745903000,-157.86412917,0.00037829,2]
[423013324,1779745903000,-1000.0,0.00038,30]
[423013298,1779745903000,-1376.47,0.0003784,120]
[423013329,1779745903000,-151.37904899,0.00038,120]
[423013339,1779745903000,-150.0,0.00038,2]
[423013328,1779745903000,-152.0,0.00038,120]
[423013340,1779745903000,-850.0,0.00038,2]
[423013331,1779745903000,-570.64,0.00038,120]
[423013330,1779745903000,-151.0,0.00038,120]
[423013332,1779745903000,-574.0,0.00038,5]
[423013338,1779745903000,-2000.0,0.00038,120]
[423013334,1779745903000,-262.0,0.00038,30]
[423013337,1779745903000,-549.43,0.00038,30]
[423013336,1779745903000,-549.43,0.00038,60]
[423013333,1779745903000,-199.72142555,0.00038,2]
[423013354,1779745903000,-4485.5116,0.00038201,30]
[423013335,1779745903000,-780.0,0.00038,30]
[423013348,1779745903000,-347.75736117,0.00038112,60]
[423013344,1779745903000,-4789.29962698,0.000381,33]
[423013343,1779745903000,-291.42163628,0.000381,33]
[423013342,1779745903000,-179.66166027,0.000381,33]
[423013351,1779745903000,-5253.61825073,0.00038133,101]
[423013346,1779745903000,-300.69263549,0.000381,33]
[423013345,1779745903000,-287.72967073,0.000381,33]
[423013353,1779745903000,-863.39511675,0.00038181,101]
[423013352,1779745903000,-151.12800541,0.00038143,2]
[423013347,1779745903000,-157.86412917,0.00038103,2]
[423013349,1779745903000,-1376.47,0.00038114,120]
[423013350,1779745903000,-3548.7,0.00038125,30]
[423013341,1779745903000,-882.22504314,0.000381,33]
[423013325,1779745903000,-40000.0,0.00038,7]
[423013297,1779745903000,-231.16,0.0003784,86]
[423013323,1779745903000,-250.0,0.00038,7]
[423013301,1779745903000,-15000.0,0.000379,30]
[423013302,1779745903000,-281750.8,0.00037901,5]
[423013299,1779745903000,-205.90686474,0.0003788,2]
[423013300,1779745903000,-2000.0,0.000379,120]
[423013295,1779745903000,-150.0,0.0003782,120]
[423013313,1779745903000,-238697.40056562,0.00038,2]
[423013314,1779745903000,-10000.0,0.00038,7]
[423013303,1779745903000,-200.0,0.00037922,2]
[423013304,1779745903000,-7541.78,0.00037955,30]
[423013305,1779745903000,-1681.532,0.00037958,50]
[423013307,1779745903000,-50000.0,0.00038,30]
[423013308,1779745903000,-398.91,0.00038,31]
[423013312,1779745903000,-726.0,0.00038,5]
[423013327,1779745903000,-302.668056,0.00038,39]
[423013309,1779745903000,-8418.0,0.00038,120]
[423013311,1779745903000,-5000.0,0.00038,60]
[423013322,1779745903000,-4000.0,0.00038,20]
[423013318,1779745903000,-373.0,0.00038,120]
[423013320,1779745903000,-302.522,0.00038,120]
[423013321,1779745903000,-222.25160111,0.00038,7]
[423013326,1779745903000,-250.0,0.00038,7]
[423013319,1779745903000,-152.4469603,0.00038,120]
[423013316,1779745903000,-10000.0,0.00038,7]
[423013315,1779745903000,-10000.0,0.00038,7]
[423013310,1779745903000,-500.0,0.00038,14]
[423013306,1779745903000,-206.34,0.00037989,2]
[423013317,1779745903000,-106279.15321208,0.00038,120]
[423013393,1779745904000,-500.0,0.00038356,2]
[423013401,1779745904000,-500.0,0.00038356,2]
[423013398,1779745904000,-500.0,0.00038356,2]
[423013402,1779745904000,-500.0,0.00038356,2]
[423013394,1779745904000,-500.0,0.00038356,2]
[423013382,1779745904000,-500.0,0.00038356,2]
[423013391,1779745904000,-500.0,0.00038356,2]
[423013388,1779745904000,-500.0,0.00038356,2]
[423013380,1779745904000,-500.0,0.00038356,2]
[423013385,1779745904000,-500.0,0.00038356,2]
[423013400,1779745904000,-500.0,0.00038356,2]
[423013392,1779745904000,-500.0,0.00038356,2]
[423013397,1779745904000,-500.0,0.00038356,2]
[423013406,1779745904000,-500.0,0.00038356,2]
[423013399,1779745904000,-500.0,0.00038356,2]
[423013395,1779745904000,-500.0,0.00038356,2]
[423013404,1779745904000,-500.0,0.00038356,2]
[423013414,1779745904000,-500.0,0.00038356,2]
[423013403,1779745904000,-500.0,0.00038356,2]
[423013407,1779745904000,-500.0,0.00038356,2]
[423013405,1779745904000,-500.0,0.00038356,2]
[423013408,1779745904000,-500.0,0.00038356,2]
[423013409,1779745904000,-500.0,0.00038356,2]
[423013412,1779745904000,-500.0,0.00038356,2]
[423013411,1779745904000,-500.0,0.00038356,2]
[423013389,1779745904000,-500.0,0.00038356,2]
[423013396,1779745904000,-500.0,0.00038356,2]
[423013384,1779745904000,-500.0,0.00038356,2]
[423013372,1779745904000,-500.0,0.00038356,2]
[423013379,1779745904000,-500.0,0.00038356,2]
[423013355,1779745904000,-7443.96044285,0.00038203,60]
[423013358,1779745904000,-519.0,0.00038222,2]
[423013366,1779745904000,-500.0,0.00038356,2]
[423013365,1779745904000,-172.294395,0.0003835,120]
[423013359,1779745904000,-931.0,0.00038222,2]
[423013357,1779745904000,-3536.0,0.00038222,2]
[423013360,1779745904000,-418.0,0.00038222,2]
[423013364,1779745904000,-230.5881232,0.00038329,120]
[423013363,1779745904000,-230.60365845,0.00038329,120]
[423013362,1779745904000,-1734.0156738,0.00038329,120]
[423013361,1779745904000,-300.0,0.0003826,30]
[423013368,1779745904000,-500.0,0.00038356,2]
[423013367,1779745904000,-500.0,0.00038356,2]
[423013369,1779745904000,-500.0,0.00038356,2]
[423013374,1779745904000,-500.0,0.00038356,2]
[423013410,1779745904000,-500.0,0.00038356,2]
[423013371,1779745904000,-500.0,0.00038356,2]
[423013370,1779745904000,-500.0,0.00038356,2]
[423013377,1779745904000,-500.0,0.00038356,2]
[423013375,1779745904000,-500.0,0.00038356,2]
[423013376,1779745904000,-500.0,0.00038356,2]
[423013373,1779745904000,-500.0,0.00038356,2]
[423013390,1779745904000,-500.0,0.00038356,2]
[423013387,1779745904000,-500.0,0.00038356,2]
[423013383,1779745904000,-500.0,0.00038356,2]
[423013381,1779745904000,-500.0,0.00038356,2]
[423013386,1779745904000,-500.0,0.00038356,2]
[423013378,1779745904000,-500.0,0.00038356,2]
[423013413,1779745904000,-500.0,0.00038356,2]
[423013356,1779745904000,-626.0,0.00038222,2]
[423013415,1779745904000,-500.0,0.00038356,2]
[423013449,1779745904000,-500.0,0.00038356,2]
[423013447,1779745904000,-604.0,0.00038356,2]
[423013452,1779745904000,-500.0,0.00038356,2]
[423013462,1779745904000,-300.0,0.00038356,2]
[423013453,1779745904000,-500.0,0.00038356,2]
[423013458,1779745904000,-300.0,0.00038356,2]
[423013457,1779745904000,-300.0,0.00038356,2]
[423013451,1779745904000,-500.0,0.00038356,2]
[423013454,1779745904000,-293.12900233,0.00038356,2]
[423013455,1779745904000,-300.0,0.00038356,2]
[423013456,1779745904000,-300.0,0.00038356,2]
[423013461,1779745904000,-300.0,0.00038356,2]
[423013459,1779745904000,-300.0,0.00038356,2]
[423013460,1779745904000,-300.0,0.00038356,2]
[423013463,1779745904000,-300.0,0.00038356,2]
[423013465,1779745904000,-300.0,0.00038356,2]
[423013466,1779745904000,-300.0,0.00038356,2]
[423013471,1779745904000,-213.90857168,0.00038356,2]
[423013468,1779745904000,-300.0,0.00038356,2]
[423013464,1779745904000,-300.0,0.00038356,2]
[423013470,1779745904000,-1280.0,0.00038356,30]
[423013475,1779745904000,-167.06718781,0.00038356,120]
[423013467,1779745904000,-300.0,0.00038356,2]
[423013474,1779745904000,-156.31073718,0.00038356,120]
[423013469,1779745904000,-166.624461,0.00038356,2]
[423013472,1779745904000,-743.84,0.00038356,120]
[423013473,1779745904000,-500.0,0.00038356,120]
[423013444,1779745904000,-151.0,0.00038356,2]
[423013446,1779745904000,-557.0,0.00038356,2]
[423013419,1779745904000,-500.0,0.00038356,2]
[423013450,1779745904000,-500.0,0.00038356,2]
[423013448,1779745904000,-500.0,0.00038356,2]
[423013418,1779745904000,-1660.59,0.00038356,2]
[423013426,1779745904000,-500.0,0.00038356,2]
[423013416,1779745904000,-225.85653119,0.00038356,2]
[423013420,1779745904000,-488.49646,0.00038356,2]
[423013421,1779745904000,-500.0,0.00038356,2]
[423013425,1779745904000,-500.0,0.00038356,2]
[423013423,1779745904000,-500.0,0.00038356,2]
[423013422,1779745904000,-500.0,0.00038356,2]
[423013424,1779745904000,-500.0,0.00038356,2]
[423013438,1779745904000,-500.0,0.00038356,2]
[423013428,1779745904000,-500.0,0.00038356,2]
[423013431,1779745904000,-500.0,0.00038356,2]
[423013439,1779745904000,-500.0,0.00038356,2]
[423013417,1779745904000,-38215.0,0.00038356,120]
[423013430,1779745904000,-500.0,0.00038356,2]
[423013427,1779745904000,-500.0,0.00038356,2]
[423013445,1779745904000,-500.0,0.00038356,2]
[423013440,1779745904000,-500.0,0.00038356,2]
[423013441,1779745904000,-500.0,0.00038356,2]
[423013435,1779745904000,-500.0,0.00038356,2]
[423013442,1779745904000,-500.0,0.00038356,2]
[423013436,1779745904000,-500.0,0.00038356,2]
[423013429,1779745904000,-500.0,0.00038356,2]
[423013437,1779745904000,-500.0,0.00038356,2]
[423013432,1779745904000,-500.0,0.00038356,2]
[423013443,1779745904000,-302.03989013,0.00038356,2]
[423013434,1779745904000,-500.0,0.00038356,2]
[423013433,1779745904000,-500.0,0.00038356,2]
[423013504,1779745905000,-150.0,0.00038632,10]
[423013509,1779745905000,-150.0,0.00038632,10]
[423013506,1779745905000,-150.0,0.00038632,10]
[423013511,1779745905000,-150.0,0.00038632,10]
[423013512,1779745905000,-150.0,0.00038632,10]
[423013514,1779745905000,-150.0,0.00038632,10]
[423013513,1779745905000,-150.0,0.00038632,10]
[423013523,1779745905000,-150.0,0.00038679,7]
[423013515,1779745905000,-150.0,0.00038632,10]
[423013508,1779745905000,-150.0,0.00038632,10]
[423013510,1779745905000,-150.0,0.00038632,10]
[423013521,1779745905000,-157.86412917,0.00038651,2]
[423013517,1779745905000,-150.0,0.00038632,10]
[423013516,1779745905000,-150.0,0.00038632,10]
[423013518,1779745905000,-150.0,0.00038632,10]
[423013520,1779745905000,-16120.226,0.0003864,30]
[423013519,1779745905000,-232.0,0.00038632,10]
[423013525,1779745905000,-150.0,0.00038679,7]
[423013524,1779745905000,-150.0,0.00038679,7]
[423013526,1779745905000,-150.0,0.00038679,7]
[423013537,1779745905000,-500.0,0.000387,120]
[423013536,1779745905000,-6420.92761816,0.00038684,120]
[423013505,1779745905000,-150.0,0.00038632,10]
[423013535,1779745905000,-150.0,0.00038679,7]
[423013522,1779745905000,-1376.47,0.00038662,120]
[423013507,1779745905000,-150.0,0.00038632,10]
[423013491,1779745905000,-152.0,0.000385,120]
[423013500,1779745905000,-156.31073718,0.0003863,120]
[423013527,1779745905000,-150.0,0.00038679,7]
[423013476,1779745905000,-153.21842259,0.00038356,120]
[423013478,1779745905000,-163.0073227,0.00038356,120]
[423013479,1779745905000,-168.04504695,0.00038356,120]
[423013480,1779745905000,-163.00732269,0.00038356,120]
[423013484,1779745905000,-157.86412917,0.00038377,2]
[423013485,1779745905000,-231.16,0.0003838,105]
[423013481,1779745905000,-161.94213057,0.00038356,120]
[423013482,1779745905000,-161.94213056,0.00038356,120]
[423013486,1779745905000,-1376.47,0.00038388,120]
[423013483,1779745905000,-300.0,0.00038356,2]
[423013487,1779745905000,-385.01,0.000384,120]
[423013490,1779745905000,-1000.0,0.000385,30]
[423013495,1779745905000,-151.90353001,0.0003852,120]
[423013494,1779745905000,-210.59,0.000385,90]
[423013489,1779745905000,-82533.9852258,0.000385,3]
[423013492,1779745905000,-106333.6,0.000385,31]
[423013493,1779745905000,-39000.0,0.000385,60]
[423013498,1779745905000,-20013.0,0.000386,15]
[423013496,1779745905000,-206.35,0.00038562,7]
[423013488,1779745905000,-584.23763248,0.000385,5]
[423013499,1779745905000,-347.6457,0.000386,120]
[423013497,1779745905000,-7029773.69887799,0.0003859,120]
[423013503,1779745905000,-150.0,0.00038632,10]
[423013501,1779745905000,-167.06718781,0.0003863,120]
[423013502,1779745905000,-150.0,0.00038632,10]
[423013477,1779745905000,-168.04504696,0.00038356,120]
[423013530,1779745905000,-150.0,0.00038679,7]
[423013533,1779745905000,-150.0,0.00038679,7]
[423013562,1779745905000,-350.0,0.00038767,5]
[423013566,1779745905000,-43000000.0,0.00038795,30]
[423013563,1779745905000,-192.44159777,0.00038775,60]
[423013572,1779745905000,-2006.6254542,0.0003888,60]
[423013573,1779745905000,-100624.99071776,0.000389,18]
[423013565,1779745905000,-171.005455,0.00038779,43]
[423013569,1779745905000,-363712.0,0.000388,30]
[423013567,1779745905000,-5000.0,0.000388,120]
[423013570,1779745905000,-12693.62257976,0.00038834,2]
[423013568,1779745905000,-467.0,0.000388,120]
[423013571,1779745905000,-306.523076,0.00038867,44]
[423013579,1779745905000,-156.31073718,0.00038904,120]
[423013578,1779745905000,-152.0,0.000389,120]
[423013580,1779745905000,-167.06718781,0.00038904,120]
[423013581,1779745905000,-231.16,0.0003892,116]
[423013582,1779745905000,-157.86412917,0.00038925,2]
[423013574,1779745905000,-2000.0,0.000389,120]
[423013576,1779745905000,-2305.833,0.000389,60]
[423013577,1779745905000,-2305.83,0.000389,60]
[423013584,1779745905000,-150.0,0.00038937,2]
[423013583,1779745905000,-1376.47,0.00038936,120]
[423013587,1779745905000,-150.0,0.00038961,2]
[423013586,1779745905000,-500.0,0.00038946,30]
[423013585,1779745905000,-500.0,0.00038946,30]
[423013529,1779745905000,-150.0,0.00038679,7]
[423013564,1779745905000,-7148.11413004,0.00038775,60]
[423013560,1779745905000,-1516.47,0.00038756,120]
[423013575,1779745905000,-2305.833,0.000389,60]
[423013556,1779745905000,-4110.08432414,0.00038751,11]
[423013557,1779745905000,-4110.08432414,0.00038751,11]
[423013531,1779745905000,-150.0,0.00038679,7]
[423013528,1779745905000,-150.0,0.00038679,7]
[423013532,1779745905000,-150.0,0.00038679,7]
[423013534,1779745905000,-294.14476502,0.00038679,7]
[423013538,1779745905000,-308.694355,0.000387,43]
[423013549,1779745905000,-4110.08432414,0.00038751,11]
[423013539,1779745905000,-1260.45,0.000387,90]
[423013542,1779745905000,-152.0,0.00038707,19]
[423013543,1779745905000,-200.0,0.00038717,2]
[423013541,1779745905000,-1197.45230152,0.000387,120]
[423013544,1779745905000,-200.0,0.0003875,30]
[423013540,1779745905000,-233.70416556,0.000387,120]
[423013548,1779745905000,-4110.08432414,0.00038751,11]
[423013555,1779745905000,-4110.08432414,0.00038751,11]
[423013546,1779745905000,-4110.08432414,0.00038751,11]
[423013558,1779745905000,-2990.746857,0.00038756,7]
[423013559,1779745905000,-1508.950339,0.00038756,7]
[423013552,1779745905000,-4110.08432414,0.00038751,11]
[423013551,1779745905000,-4110.08432414,0.00038751,11]
[423013554,1779745905000,-4110.08432414,0.00038751,11]
[423013561,1779745905000,-186.38,0.00038756,120]
[423013550,1779745905000,-4110.08432414,0.00038751,11]
[423013547,1779745905000,-4110.08432414,0.00038751,11]
[423013545,1779745905000,-4110.08432423,0.00038751,11]
[423013553,1779745905000,-4110.08432414,0.00038751,11]
[423013626,1779745906000,-44257.14133972,0.00039,30]
[423013632,1779745906000,-5000.0,0.00039,5]
[423013628,1779745906000,-1004.5598452,0.00039,120]
[423013629,1779745906000,-304.43529019,0.00039,120]
[423013631,1779745906000,-600.0,0.00039,120]
[423013620,1779745906000,-13774.08643128,0.00039,30]
[423013623,1779745906000,-500.0,0.00039,14]
[423013621,1779745906000,-1000.0,0.00039,2]
[423013622,1779745906000,-600.0,0.00039,2]
[423013624,1779745906000,-10000000.0,0.00039,120]
[423013630,1779745906000,-13947.11675527,0.00039,30]
[423013627,1779745906000,-1000.0,0.00039,30]
[423013634,1779745906000,-4851.34877777,0.00039,20]
[423013646,1779745906000,-10924.24996295,0.00039,2]
[423013636,1779745906000,-4070.0,0.00039,60]
[423013635,1779745906000,-251.31361816,0.00039,30]
[423013638,1779745906000,-500.0,0.00039,120]
[423013637,1779745906000,-65968.33295264,0.00039,7]
[423013639,1779745906000,-31339.94424622,0.00039,2]
[423013640,1779745906000,-19007.44,0.00039,30]
[423013648,1779745906000,-24273.0,0.00039,60]
[423013650,1779745906000,-10000.0,0.00039,120]
[423013643,1779745906000,-193.11796252,0.00039,30]
[423013647,1779745906000,-519.14612102,0.00039,120]
[423013618,1779745906000,-994.0,0.00039,15]
[423013644,1779745906000,-5000.0,0.00039,3]
[423013645,1779745906000,-1324.35305039,0.00039,120]
[423013633,1779745906000,-5000.0,0.00039,4]
[423013617,1779745906000,-5000.0,0.00039,15]
[423013602,1779745906000,-5000.0,0.00039,5]
[423013625,1779745906000,-2000.0,0.00039,48]
[423013641,1779745906000,-168.12222089,0.00039,30]
[423013588,1779745906000,-443.79,0.00038973,30]
[423013589,1779745906000,-199.45,0.00038973,30]
[423013591,1779745906000,-782.06,0.00038999,120]
[423013594,1779745906000,-9883.25962122,0.00039,5]
[423013590,1779745906000,-274.30521873,0.0003899,30]
[423013595,1779745906000,-100000.0,0.00039,10]
[423013593,1779745906000,-12356.34803853,0.00039,14]
[423013592,1779745906000,-50000.0,0.00039,32]
[423013596,1779745906000,-421.93,0.00039,120]
[423013597,1779745906000,-250.0,0.00039,10]
[423013600,1779745906000,-5021.0,0.00039,30]
[423013599,1779745906000,-1001.0,0.00039,120]
[423013619,1779745906000,-180.0,0.00039,120]
[423013598,1779745906000,-1060.0,0.00039,30]
[423013613,1779745906000,-5000.0,0.00039,10]
[423013605,1779745906000,-5000.0,0.00039,5]
[423013607,1779745906000,-5000.0,0.00039,10]
[423013604,1779745906000,-5000.0,0.00039,5]
[423013609,1779745906000,-5000.0,0.00039,10]
[423013606,1779745906000,-5000.0,0.00039,5]
[423013611,1779745906000,-5000.0,0.00039,10]
[423013608,1779745906000,-5000.0,0.00039,10]
[423013612,1779745906000,-5000.0,0.00039,15]
[423013610,1779745906000,-5000.0,0.00039,10]
[423013614,1779745906000,-5000.0,0.00039,15]
[423013615,1779745906000,-5000.0,0.00039,15]
[423013616,1779745906000,-5000.0,0.00039,15]
[423013603,1779745906000,-5000.0,0.00039,5]
[423013601,1779745906000,-5000.0,0.00039,5]
[423013642,1779745906000,-215.06936296,0.00039,90]
[423013651,1779745906000,-26165.23175268,0.00039,120]
[423013678,1779745906000,-500.0,0.0003909,30]
[423013685,1779745906000,-150.0,0.00039183,120]
[423013687,1779745906000,-1000.0,0.000392,30]
[423013683,1779745906000,-167.06718781,0.00039178,120]
[423013688,1779745906000,-448.73,0.00039243,120]
[423013684,1779745906000,-298.0,0.00039178,120]
[423013691,1779745906000,-1647.5,0.00039243,120]
[423013694,1779745906000,-745.65223615,0.00039277,2]
[423013701,1779745906000,-150.0,0.00039365,120]
[423013690,1779745906000,-3230.95,0.00039243,120]
[423013695,1779745906000,-1000.0,0.000393,60]
[423013692,1779745906000,-74223.09,0.00039243,120]
[423013698,1779745906000,-3178.23851241,0.00039333,120]
[423013686,1779745906000,-157.86412917,0.00039199,2]
[423013699,1779745906000,-627.25411581,0.00039333,120]
[423013697,1779745906000,-403.12,0.000393,90]
[423013696,1779745906000,-256.5,0.000393,90]
[423013702,1779745906000,-222.9786044,0.00039387,120]
[423013704,1779745906000,-1518.90849416,0.00039392,2]
[423013705,1779745906000,-35350.0,0.000394,30]
[423013703,1779745906000,-410.56,0.00039388,120]
[423013711,1779745906000,-2957.55851358,0.00039403,7]
[423013706,1779745906000,-40175.68636,0.000394,5]
[423013707,1779745906000,-152.0,0.000394,120]
[423013709,1779745906000,-2660.12162493,0.00039403,7]
[423013710,1779745906000,-2193.50690257,0.00039403,7]
[423013708,1779745906000,-4299.99457456,0.00039401,7]
[423013649,1779745906000,-245.1081338,0.00039,120]
[423013700,1779745906000,-150.0,0.00039352,120]
[423013682,1779745906000,-156.31073718,0.00039178,120]
[423013693,1779745906000,-775.4783256,0.00039277,2]
[423013680,1779745906000,-500.0,0.0003909,30]
[423013652,1779745906000,-752.98100857,0.00039,60]
[423013653,1779745906000,-5114.0,0.00039,120]
[423013662,1779745906000,-21000.0,0.00039,7]
[423013659,1779745906000,-500.0,0.00039,13]
[423013689,1779745906000,-214.9,0.00039243,120]
[423013661,1779745906000,-480.73,0.00039,13]
[423013658,1779745906000,-780.0,0.00039,30]
[423013655,1779745906000,-10376.28861299,0.00039,7]
[423013654,1779745906000,-950.0,0.00039,120]
[423013657,1779745906000,-262.0,0.00039,30]
[423013663,1779745906000,-2100.0,0.00039,2]
[423013660,1779745906000,-500.0,0.00039,13]
[423013665,1779745906000,-168.35,0.00039,7]
[423013669,1779745906000,-1416.15810826,0.00039,2]
[423013656,1779745906000,-198.0,0.00039,30]
[423013676,1779745906000,-500.0,0.0003909,30]
[423013664,1779745906000,-150.0,0.00039,5]
[423013681,1779745906000,-151.0,0.000391,120]
[423013679,1779745906000,-268.69,0.0003909,30]
[423013674,1779745906000,-500.0,0.0003909,30]
[423013673,1779745906000,-500.0,0.0003909,30]
[423013671,1779745906000,-300.0,0.0003905,30]
[423013677,1779745906000,-500.0,0.0003909,30]
[423013675,1779745906000,-500.0,0.0003909,30]
[423013667,1779745906000,-109101.18257664,0.00039,2]
[423013666,1779745906000,-98313.22463846,0.00039,9]
[423013672,1779745906000,-1031497.86,0.00039069,120]
[423013670,1779745906000,-337.92,0.00039044,30]
[423013668,1779745906000,-574.87138438,0.00039,2]
[423013732,1779745907000,-400.0,0.000395,60]
[423013721,1779745907000,-609.12,0.00039456,30]
[423013731,1779745907000,-100000.0,0.000395,12]
[423013728,1779745907000,-434447.82139984,0.0003949,2]
[423013730,1779745907000,-100000.0,0.000395,11]
[423013727,1779745907000,-157.86412917,0.00039473,2]
[423013723,1779745907000,-1133.18,0.00039456,30]